fUSD/lending_fUSD_20251204
["ID","MTS","AMOUNT","RATE_DAILY","PERIOD"]
[396224290,1764835846393,-500.0,0.00016859,2]
[396224291,1764835846402,-250.0,0.00016859,2]
[396224292,1764835846411,-574.12855637,0.00016859,2]
[396224293,1764835846421,-500.0,0.00016859,2]
[396224294,1764835846431,-500.0,0.00016859,2]
[396224295,1764835846440,-151.0,0.00016859,2]
[396224296,1764835846449,-250.0,0.00016859,2]
[396224297,1764835846459,-500.0,0.00016859,2]
[396224298,1764835846468,-500.0,0.00016859,2]
[396224299,1764835846478,-250.0,0.00016859,2]
[396224300,1764835846488,-1000.0,0.00016859,2]
[396224301,1764835846497,-500.0,0.00016859,2]
[396224303,1764835846506,-500.0,0.00016859,2]
[396224305,1764835846519,-251.91646431,0.00016859,2]
[396224307,1764835846528,-1000.0,0.00016859,2]
[396224308,1764835846537,-500.0,0.00016859,2]
[396224309,1764835846547,-1000.0,0.00016859,2]
[396224310,1764835846556,-510.01989463,0.00016859,2]
[396224311,1764835846565,-1000.0,0.00016859,2]
[396224312,1764835846574,-220.0,0.00016859,2]
[396224313,1764835846583,-1000.0,0.00016859,2]
[396224314,1764835846592,-220.0,0.00016859,2]
[396224315,1764835846602,-500.0,0.00016859,2]
[396224316,1764835846612,-1000.0,0.00016859,2]
[396224317,1764835846622,-230.49226524,0.00016859,2]
[396224318,1764835846632,-500.0,0.00016859,2]
[396224319,1764835846642,-1000.0,0.00016859,2]
[396224320,1764835846651,-500.0,0.00016859,2]
[396224321,1764835846661,-1000.0,0.00016859,2]
[396224322,1764835846671,-500.0,0.00016859,2]
[396224323,1764835846680,-1000.0,0.00016859,2]
[396224324,1764835846691,-500.0,0.00016859,2]
[396224325,1764835846702,-1000.0,0.00016859,2]
[396224326,1764835846712,-500.0,0.00016859,2]
[396224327,1764835846722,-1000.0,0.00016859,2]
[396224328,1764835846731,-500.0,0.00016859,2]
[396224329,1764835846742,-4000.0,0.00016859,2]
[396224330,1764835846751,-500.0,0.00016859,2]
[396224331,1764835846761,-4068.27367881,0.00016859,2]
[396224332,1764835846770,-295.13682797,0.00016859,2]
[396224333,1764835846779,-500.0,0.00016859,2]
[396224334,1764835846788,-500.0,0.00016859,2]
[396224335,1764835846798,-1000.0,0.00016859,2]
[396224336,1764835846807,-2000.0,0.00016859,2]
[396224337,1764835846816,-500.0,0.00016859,2]
[396224338,1764835846826,-1000.0,0.00016859,2]
[396224339,1764835846836,-2000.0,0.00016859,2]
[396224340,1764835846846,-1000.0,0.00016859,2]
[396224341,1764835846855,-201.32298322,0.00016859,2]
[396224342,1764835846865,-1000.0,0.00016859,2]
[396224343,1764835846874,-500.0,0.00016859,2]
[396224344,1764835846884,-2000.0,0.00016859,2]
[396224345,1764835846897,-1000.0,0.00016859,2]
[396224346,1764835846907,-1000.0,0.00016859,2]
[396224347,1764835846917,-500.0,0.00016859,2]
[396224348,1764835846926,-2000.0,0.00016859,2]
[396224349,1764835846936,-1000.0,0.00016859,2]
[396224350,1764835846944,-47.70529952,0.00016859,2]
[396224351,1764835846957,-952.29470048,0.00016859,2]
[396224352,1764835846966,-500.0,0.00016859,2]
[396224353,1764835846975,-500.0,0.00016859,2]
[396224354,1764835846985,-2000.0,0.00016859,2]
[396224355,1764835846995,-1000.0,0.00016859,2]
[396224356,1764835847005,-1000.0,0.00016859,2]
[396224357,1764835847016,-500.0,0.00016859,2]
[396224358,1764835847026,-500.0,0.00016859,2]
[396224359,1764835847035,-2000.0,0.00016859,2]
[396224360,1764835847045,-1000.0,0.00016859,2]
[396224361,1764835847056,-790.45809796,0.00016859,2]
[396224362,1764835847067,-209.54190204,0.00016859,2]
[396224363,1764835847077,-500.0,0.00016859,2]
[396224364,1764835847086,-500.0,0.00016859,2]
[396224365,1764835847096,-1000.0,0.00016859,2]
[396224366,1764835847106,-2000.0,0.00016859,2]
[396224367,1764835847115,-1000.0,0.00016859,2]
[396224368,1764835847124,-500.0,0.00016859,2]
[396224369,1764835847135,-500.0,0.00016859,2]
[396224370,1764835847144,-397.54712625,0.00016859,2]
[396224371,1764835847153,-248.81164398,0.00016859,2]
[396224372,1764835847275,-896.40135444,0.00016859,2]
[396224373,1764835847287,-854.78700158,0.00016859,2]
[396224374,1764835847297,-1000.0,0.00016859,2]
[396224375,1764835847306,-500.0,0.00016859,2]
[396224376,1764835847316,-500.0,0.00016859,2]
[396224377,1764835847326,-2000.0,0.00016859,2]
[396224378,1764835847336,-500.0,0.00016859,2]
[396224379,1764835847346,-500.0,0.00016859,2]
[396224380,1764835847355,-1000.0,0.00016859,2]
[396224381,1764835847365,-500.0,0.00016859,2]
[396224382,1764835847375,-2000.0,0.00016859,2]
[396224383,1764835847384,-500.0,0.00016859,2]
[396224384,1764835847395,-1006.10006845,0.00016859,2]
[396224385,1764835847404,-500.0,0.00016859,2]
[396224386,1764835847414,-2000.0,0.00016859,2]
[396224387,1764835847423,-500.0,0.00016859,2]
[396224388,1764835847432,-500.0,0.00016859,2]
[396224389,1764835847441,-500.0,0.00016859,2]
[396224390,1764835847451,-500.0,0.00016859,2]
[396224391,1764835847461,-500.0,0.00016859,2]
[396224392,1764835847470,-500.0,0.00016859,2]
[396224393,1764835847480,-508.75667085,0.00016859,2]
[396224394,1764835847489,-500.0,0.00016859,2]
[396224395,1764835847499,-500.0,0.00016859,2]
[396224396,1764835847508,-201.67121369,0.00016859,2]
[396224397,1764835847518,-500.0,0.00016859,2]
[396224398,1764835847527,-503.93214837,0.00016859,2]
[396224399,1764835847537,-500.0,0.00016859,2]
[396224400,1764835847547,-500.0,0.00016859,2]
[396224401,1764835847557,-500.0,0.00016859,2]
[396224402,1764835847567,-151.0,0.00016859,2]
[396224403,1764835847576,-250.0,0.00016859,2]
[396224404,1764835847586,-250.0,0.00016859,2]
[396224405,1764835847595,-250.0,0.00016859,2]
[396224406,1764835847604,-500.0,0.00016859,2]
[396224407,1764835847614,-250.0,0.00016859,2]
[396224408,1764835847623,-209.40437684,0.00016859,2]
[396224409,1764835847632,-500.0,0.00016859,2]
[396224410,1764835847642,-250.0,0.00016859,2]
[396224411,1764835847651,-500.0,0.00016859,2]
[396224412,1764835847660,-250.0,0.00016859,2]
[396224413,1764835847670,-500.0,0.00016859,2]
[396224414,1764835847679,-319.4682898,0.00016859,2]
[396224415,1764835847688,-500.0,0.00016859,2]
[396224416,1764835847697,-500.0,0.00016859,2]
[396224417,1764835847707,-500.0,0.00016859,2]
[396224418,1764835847717,-500.0,0.00016859,2]
[396224419,1764835847726,-500.0,0.00016859,2]
[396224420,1764835847735,-500.0,0.00016859,2]
[396224421,1764835847746,-500.0,0.00016859,2]
[396224422,1764835847755,-182.59973315,0.00016868,2]
[396224423,1764835847765,-500.0,0.00016868,2]
[396224424,1764835847776,-500.0,0.00016868,2]
[396224425,1764835847785,-185.56045387,0.00016868,2]
[396224426,1764835847795,-500.0,0.00016868,2]
[396224427,1764835847804,-150.0,0.00016868,2]
[396224428,1764835847814,-500.0,0.00016868,2]
[396224429,1764835847823,-1680.0,0.00016869,2]
[396224430,1764835847833,-195.0,0.00016876,2]
[396224431,1764835847843,-289.8175195,0.00016876,2]
[396224432,1764835847852,-999.0,0.00016891,3]
[396224433,1764835847862,-1370.18191314,0.000169,2]
[396224434,1764835847871,-19737.0,0.00016959,2]
[396224435,1764835847880,-1311.77661012,0.0001697,2]
[396224436,1764835847893,-130.20548617,0.0001697,2]
[396224437,1764835847903,-512.92196681,0.00016973,2]
[396224438,1764835847912,-518.5,0.00016986,2]
[396224439,1764835847922,-500.0,0.0001699,2]
[396224440,1764835847932,-157.37992294,0.0001699,2]
[396224441,1764835847941,-150.0,0.0001699,2]
[396224442,1764835847951,-150.0,0.0001699,2]
[396224443,1764835847960,-150.0,0.0001699,2]
[396224444,1764835847971,-291.76259641,0.0001699,2]
[396224445,1764835847980,-150.0,0.0001699,2]
[396224446,1764835847990,-1263.9503875,0.00016991,2]
[396224447,1764835847999,-7654.0386725,0.00016991,2]
[396224448,1764835848009,-4304.3847763,0.00016991,2]
[396224449,1764835848018,-4493.74454019,0.00016991,2]
[396224454,1764836330927,1489.15,0.00025,120]
[396224455,1764836351738,181.5126248,0.00025,120]
[396224457,1764836426912,-1200.0,0.00015799,2]
[396224458,1764836427008,-282.0,0.00015799,2]
[396224460,1764836427102,-10783.23064533,0.000158,2]
[396224461,1764836427193,-5670.45833737,0.000158,2]
[396224462,1764836427286,-320.7744813,0.000158,2]
[396224463,1764836427384,-125743.536536,0.000159,2]
[396224522,1764837032270,-791.87,0.00013699,2]
[396224523,1764837032280,-263.0,0.00013699,2]
[396224524,1764837032290,-2411.06453334,0.0001439,2]
[396224525,1764837032299,-1199.45361182,0.00014999,2]
[396224526,1764837032391,-0.54638818,0.00014999,2]
[396224527,1764837032402,-1200.22665768,0.00015,2]
[396224528,1764837032460,-525.74328535,0.00015,2]
[396224529,1764837032472,-1337.70986208,0.00015,2]
[396224530,1764837032484,-632.89017916,0.00015,2]
[396224531,1764837032493,-3092.37894678,0.00015,2]
[396224532,1764837032528,-303.10070164,0.00015,2]
[396224533,1764837032540,-2.89929836,0.00015401,2]
[396224538,1764837038406,-147.10070164,0.00015401,2]
[396224539,1764837038416,-200.0,0.00015454,2]
[396224540,1764837038426,-408.58338233,0.00015582,2]
[396224583,1764837040208,-445.56224688,0.00015582,2]
[396224584,1764837040322,-664.34637079,0.00015582,2]
[396224585,1764837040332,-362.62,0.00015745,2]
[396224586,1764837040341,-300.0,0.00015799,2]
[396224587,1764837040351,-7330.6747,0.000158,2]
[396224588,1764837040365,-5854.46140891,0.000158,2]
[396224589,1764837040378,-4138.7968325,0.000158,2]
[396224590,1764837040389,-375.32230847,0.000158,2]
[396224591,1764837040413,-975.70703599,0.000158,2]
[396224592,1764837040499,-3030.275,0.000158,2]
[396224593,1764837040515,-969.62841413,0.000158,2]
[396224594,1764837040533,-5336.8454,0.000158,2]
[396224595,1764837040542,-72502.4012,0.000158,2]
[396224596,1764837040553,-4259.37,0.00015814,2]
[396224597,1764837040562,-562.05,0.00015822,2]
[396224598,1764837040571,-200.0,0.0001589,2]
[396224599,1764837040580,-509.51129037,0.0001589,2]
[396224600,1764837040592,-151.0,0.0001589,2]
[396224601,1764837040601,-151.0,0.0001589,2]
[396224602,1764837040612,-151.0,0.0001589,2]
[396224603,1764837040621,-151.0,0.0001589,2]
[396224604,1764837040633,-151.0,0.0001589,2]
[396224605,1764837040642,-151.0,0.0001589,2]
[396224606,1764837040652,-151.0,0.0001589,2]
[396224607,1764837040662,-1000.0,0.00015899,2]
[396224608,1764837040672,-500.0,0.00015899,2]
[396224609,1764837040683,-500.0,0.00015899,2]
[396224610,1764837040696,-500.0,0.00015899,2]
[396224611,1764837040706,-202.59163877,0.00015999,2]
[396224612,1764837040717,-162.3037051,0.00016082,2]
[396224613,1764837040727,-309.35627856,0.00016082,2]
[396224614,1764837040738,-5103.41250366,0.00016082,2]
[396224615,1764837040750,-300.0,0.00016148,2]
[396224616,1764837040759,-151.0,0.00016148,2]
[396224617,1764837040769,-151.0,0.00016148,2]
[396224618,1764837040778,-2000.0,0.00016148,2]
[396224619,1764837040789,-2000.0,0.00016148,2]
[396224620,1764837040799,-2000.0,0.00016148,2]
[396224621,1764837040809,-2000.0,0.00016148,2]
[396224622,1764837040819,-2000.0,0.00016148,2]
[396224623,1764837040828,-2000.0,0.00016148,2]
[396224624,1764837040836,-151.0,0.00016148,2]
[396224625,1764837040844,-2000.0,0.00016148,2]
[396224626,1764837040853,-2000.0,0.00016148,2]
[396224627,1764837040863,-1978.90968169,0.00016148,2]
[396224628,1764837040872,-335.66906055,0.00016148,2]
[396224629,1764837040882,-574.12855637,0.00016148,2]
[396224630,1764837040895,-151.0,0.00016148,2]
[396224631,1764837040905,-1000.0,0.00016148,2]
[396224632,1764837040915,-1000.0,0.00016148,2]
[396224633,1764837040924,-1000.0,0.00016148,2]
[396224634,1764837040935,-1000.0,0.00016148,2]
[396224635,1764837040945,-1000.0,0.00016148,2]
[396224636,1764837040955,-1000.0,0.00016148,2]
[396224637,1764837040964,-1000.0,0.00016148,2]
[396224638,1764837040974,-500.0,0.00016148,2]
[396224639,1764837040983,-1000.0,0.00016148,2]
[396224640,1764837040993,-500.0,0.00016148,2]
[396224641,1764837041003,-628.35238982,0.00016148,2]
[396224642,1764837041012,-1000.0,0.00016148,2]
[396224643,1764837041022,-500.0,0.00016148,2]
[396224644,1764837041031,-1000.0,0.00016148,2]
[396224645,1764837041041,-500.0,0.00016148,2]
[396224646,1764837041050,-599.60298507,0.00016148,2]
[396224647,1764837041060,-1000.0,0.00016148,2]
[396224648,1764837041070,-500.0,0.00016148,2]
[396224649,1764837041080,-500.0,0.00016148,2]
[396224650,1764837041090,-500.0,0.00016148,2]
[396224651,1764837041103,-500.0,0.00016148,2]
[396224652,1764837041113,-500.0,0.00016148,2]
[396224653,1764837041122,-500.0,0.00016148,2]
[396224654,1764837041132,-311.1,0.00016148,2]
[396224655,1764837041142,-500.0,0.00016148,2]
[396224656,1764837041152,-500.0,0.00016148,2]
[396224657,1764837041161,-500.0,0.00016148,2]
[396224658,1764837041171,-500.0,0.00016148,2]
[396224659,1764837041181,-500.0,0.00016148,2]
[396224660,1764837041190,-500.0,0.00016148,2]
[396224661,1764837041199,-500.0,0.00016148,2]
[396224662,1764837041209,-500.0,0.00016148,2]
[396224663,1764837041219,-602.00215734,0.00016148,2]
[396224664,1764837041228,-500.0,0.00016148,2]
[396224665,1764837041237,-309.90051887,0.00016148,2]
[396224666,1764837041247,-277.35679052,0.00016148,2]
[396224667,1764837041257,-2350.0,0.00016148,2]
[396224668,1764837041267,-1273.27178046,0.00016148,2]
[396224669,1764837041280,-426.29,0.00016169,2]
[396224670,1764837041290,-2474.08,0.00016169,2]
[396224671,1764837041299,-182481.7946306,0.00016182,2]
[396224672,1764837041309,-178.0099257,0.00016182,2]
[396224673,1764837041318,-195610.6439321,0.00016182,2]
[396224674,1764837041328,-2083.5459182,0.00016182,2]
[396224675,1764837041337,-2088.9190213,0.00016182,2]
[396224676,1764837041347,-15969.67,0.00016438,2]
[396224677,1764837041358,-8741.79,0.00016438,2]
[396224678,1764837041370,-800.55945524,0.00016438,2]
[396224679,1764837041380,-1680.0,0.00016499,2]
[396224680,1764837041390,-2095.0,0.00016544,2]
[396224681,1764837041402,-4995.0,0.00016557,2]
[396224682,1764837041413,-2095.0,0.00016563,2]
[396224683,1764837041423,-166.66,0.00016607,2]
[396224684,1764837041432,-2095.0,0.00016632,2]
[396224685,1764837041447,-2095.0,0.00016655,2]
[396224686,1764837041457,-2095.0,0.00016674,2]
[396224687,1764837041467,-4995.0,0.00016675,2]
[396224688,1764837041477,-2095.0,0.00016682,2]
[396224689,1764837041491,-151.0,0.00016696,2]
[396224690,1764837041501,-151.0,0.00016696,2]
[396224691,1764837041512,-152.97594253,0.00016696,2]
[396224692,1764837041522,-595.37131296,0.00016696,2]
[396224693,1764837041532,-2350.0,0.00016696,2]
[396224694,1764837041542,-1000.0,0.000167,2]
[396224695,1764837041552,-1000.0,0.000167,2]
[396224696,1764837041562,-1006.0,0.000167,2]
[396224697,1764837041572,-2095.0,0.00016705,2]
[396224698,1764837041582,-4995.0,0.00016738,2]
[396224699,1764837041593,-2095.0,0.00016752,2]
[396224700,1764837041603,-2095.0,0.0001677,2]
[396224701,1764837041612,-2095.0,0.00016843,2]
[396224702,1764837041622,-2095.0,0.00016856,2]
[396224703,1764837041631,-1174.44163986,0.00016891,2]
[396224704,1764837041641,-312.6,0.000169,2]
[396224705,1764837041651,-218.12979786,0.000169,2]
[396224706,1764837041661,-202.19795805,0.000169,2]
[396224707,1764837041671,-616.4929053,0.000169,2]
[396224708,1764837041682,-4995.0,0.00016908,2]
[396224709,1764837041695,-2095.0,0.00016928,2]
[396224710,1764837041704,-2095.0,0.00016937,2]
[396224711,1764837041714,-7637.5582138,0.00016945,2]
[396224712,1764837041723,-173.3034964,0.00016945,2]
[396224713,1764837041735,-2095.0,0.00016956,2]
[396224714,1764837041744,-1000.0,0.0001697,2]
[396224715,1764837041756,-598.94895177,0.00016973,2]
[396224716,1764837041768,-500.0,0.00016973,2]
[396224717,1764837041777,-518.5,0.00016986,2]
[396224718,1764837041786,-1161.82,0.00016988,2]
[396224719,1764837041796,-500.0,0.0001699,2]
[396224720,1764837041807,-150.0,0.0001699,2]
[396224721,1764837041816,-150.0,0.0001699,2]
[396224722,1764837041826,-150.0,0.0001699,2]
[396224723,1764837041835,-150.86420125,0.0001699,2]
[396224724,1764837041846,-150.0,0.0001699,2]
[396224725,1764837041857,-500.0,0.0001699,2]
[396224726,1764837041867,-500.0,0.0001699,2]
[396224727,1764837041877,-150.0,0.0001699,2]
[396224728,1764837041887,-150.0,0.0001699,2]
[396224729,1764837041896,-500.0,0.0001699,2]
[396224730,1764837041906,-150.0,0.0001699,2]
[396224731,1764837041917,-500.0,0.0001699,2]
[396224732,1764837041927,-500.0,0.0001699,2]
[396224733,1764837041936,-210.30255927,0.0001699,2]
[396224734,1764837041949,-295.49167691,0.0001699,2]
[396224735,1764837041959,-150.0,0.0001699,2]
[396224736,1764837041968,-150.0,0.0001699,2]
[396224737,1764837041979,-150.0,0.0001699,2]
[396224738,1764837041988,-150.0,0.0001699,2]
[396224739,1764837042000,-14421.0563509,0.00016991,2]
[396224740,1764837042011,-2000.0,0.00016991,2]
[396224741,1764837042021,-200.0,0.00016991,2]
[396224742,1764837042032,-500.0,0.00016998,2]
[396224743,1764837042042,-300.0,0.00016999,2]
[396224744,1764837042052,-305.96646881,0.00016999,2]
[396224745,1764837042061,-500.0,0.00016999,2]
[396224746,1764837042071,-410.37691776,0.00016999,2]
[396224747,1764837042090,-578.77667957,0.00016999,2]
[396224748,1764837042101,-1432.34827568,0.00016999,2]
[396224749,1764837042111,-1432.34827568,0.00016999,2]
[396224750,1764837042121,-1432.34827568,0.00016999,2]
[396224751,1764837042131,-1432.34827568,0.00016999,2]
[396224752,1764837042142,-1432.34827568,0.00016999,2]
[396224753,1764837042152,-1432.34827568,0.00016999,2]
[396224754,1764837042161,-1432.34827568,0.00016999,2]
[396224755,1764837042171,-1432.34827568,0.00016999,2]
[396224756,1764837042181,-1432.34827568,0.00016999,2]
[396224757,1764837042190,-1432.34827568,0.00016999,2]
[396224758,1764837042200,-1432.34827568,0.00016999,2]
[396224759,1764837042210,-1432.34827568,0.00016999,2]
[396224760,1764837042219,-1432.34827568,0.00016999,2]
[396224761,1764837042228,-1432.34827568,0.00016999,2]
[396224762,1764837042237,-1432.34827568,0.00016999,2]
[396224763,1764837042247,-1432.34827568,0.00016999,2]
[396224764,1764837042256,-1432.34827568,0.00016999,2]
[396224765,1764837042266,-1432.34827568,0.00016999,2]
[396224766,1764837042275,-1432.34827568,0.00016999,2]
[396224767,1764837042285,-1432.34827568,0.00016999,2]
[396224768,1764837042294,-1432.34827568,0.00016999,2]
[396224769,1764837042303,-1432.34827568,0.00016999,2]
[396224770,1764837042312,-1432.34827568,0.00016999,2]
[396224771,1764837042322,-1432.34827568,0.00016999,2]
[396224772,1764837042331,-1432.34827568,0.00016999,2]
[396224773,1764837042340,-1432.34827568,0.00016999,2]
[396224774,1764837042350,-1432.34827568,0.00016999,2]
[396224775,1764837042364,-1432.34827568,0.00016999,2]
[396224776,1764837042374,-1432.34827568,0.00016999,2]
[396224777,1764837042384,-1432.34827568,0.00016999,2]
[396224778,1764837042393,-1432.34827568,0.00016999,2]
[396224779,1764837042403,-1432.34827568,0.00016999,2]
[396224780,1764837042413,-1432.34827568,0.00016999,2]
[396224781,1764837042423,-1432.34827568,0.00016999,2]
[396224782,1764837042435,-1432.34827568,0.00016999,2]
[396224783,1764837042444,-1432.34827568,0.00016999,2]
[396224784,1764837042460,-1432.34827568,0.00016999,2]
[396224785,1764837042471,-1432.34827568,0.00016999,2]
[396224786,1764837042482,-1432.34827568,0.00016999,2]
[396224787,1764837042491,-1432.34827568,0.00016999,2]
[396224788,1764837042503,-1432.34827568,0.00016999,2]
[396224789,1764837042512,-1432.34827568,0.00016999,2]
[396224790,1764837042522,-1432.34827568,0.00016999,2]
[396224791,1764837042531,-1432.34827568,0.00016999,2]
[396224792,1764837042543,-1432.34827568,0.00016999,2]
[396224793,1764837042552,-1432.34827568,0.00016999,2]
[396224794,1764837042562,-1432.34827568,0.00016999,2]
[396224795,1764837042571,-1432.34827568,0.00016999,2]
[396224796,1764837042581,-1432.34827568,0.00016999,2]
[396224797,1764837042593,-1432.34827568,0.00016999,2]
[396224798,1764837042603,-1432.34827568,0.00016999,2]
[396224799,1764837042614,-1432.34827568,0.00016999,2]
[396224800,1764837042624,-1432.34827568,0.00016999,2]
[396224801,1764837042633,-1432.34827568,0.00016999,2]
[396224802,1764837042643,-1432.34827568,0.00016999,2]
[396224803,1764837042653,-1432.34827568,0.00016999,2]
[396224804,1764837042663,-1432.34827568,0.00016999,2]
[396224805,1764837042674,-1432.34827568,0.00016999,2]
[396224806,1764837042684,-1432.34827568,0.00016999,2]
[396224807,1764837042696,-1432.34827568,0.00016999,2]
[396224808,1764837042707,-1432.34827568,0.00016999,2]
[396224809,1764837042715,-1432.34827568,0.00016999,2]
[396224810,1764837042723,-1432.34827568,0.00016999,2]
[396224811,1764837042732,-1432.34827568,0.00016999,2]
[396224812,1764837042742,-1432.34827568,0.00016999,2]
[396224813,1764837042751,-1432.34827568,0.00016999,2]
[396224814,1764837042760,-9297.0,0.00017,2]
[396224815,1764837042771,-759438.87649268,0.00017,2]
[396224816,1764837042781,-250.0,0.00017,2]
[396224817,1764837042791,-151.0,0.00017,2]
[396224818,1764837042801,-151.0,0.00017,2]
[396224819,1764837042811,-1000.0,0.00017,2]
[396224820,1764837042820,-1000.0,0.00017,2]
[396224821,1764837042830,-1000.0,0.00017,2]
[396224822,1764837042839,-1000.0,0.00017,2]
[396224823,1764837042852,-1000.0,0.00017,2]
[396224824,1764837042861,-1000.0,0.00017,2]
[396224825,1764837042871,-1000.0,0.00017,2]
[396224826,1764837042880,-1000.0,0.00017,2]
[396224827,1764837042890,-1000.0,0.00017,2]
[396224828,1764837042900,-1000.0,0.00017,2]
[396224829,1764837042909,-1000.0,0.00017,2]
[396224830,1764837042919,-1000.0,0.00017,2]
[396224831,1764837042928,-1000.0,0.00017,2]
[396224832,1764837042938,-1000.0,0.00017,2]
[396224833,1764837042947,-1000.0,0.00017,2]
[396224834,1764837042956,-1000.0,0.00017,2]
[396224835,1764837043193,-1000.0,0.00017,2]
[396224836,1764837043203,-1000.0,0.00017,2]
[396224837,1764837043212,-1000.0,0.00017,2]
[396224838,1764837043222,-1000.0,0.00017,2]
[396224839,1764837043231,-1000.0,0.00017,2]
[396224840,1764837043240,-1000.0,0.00017,2]
[396224841,1764837043249,-1000.0,0.00017,2]
[396224842,1764837043259,-1000.0,0.00017,2]
[396224843,1764837043268,-1000.0,0.00017,2]
[396224844,1764837043277,-1000.0,0.00017,2]
[396224845,1764837043287,-1000.0,0.00017,2]
[396224846,1764837043298,-1017.86356618,0.00017,2]
[396224847,1764837043308,-2000.0,0.00017,2]
[396224848,1764837043318,-1153030.58605312,0.00017,2]
[396224849,1764837043338,-19421.168089,0.00017,2]
[396224854,1764837048518,-284887.28981237,0.00017,2]
[396224855,1764837048757,-5522.74749257,0.00017,2]
[396224856,1764837048768,-8380.0,0.00017,2]
[396224857,1764837049126,-5103.41250362,0.00016173,2]
[396224858,1764837049137,-20239.95009247,0.00017,2]
[396224859,1764837049153,-400.0,0.00017,2]
[396224860,1764837049173,-272.15550135,0.00017,2]
[396224969,1764838231525,-166.66,0.00014816,2]
[396224970,1764838231535,-1000.0,0.0001488,2]
[396224971,1764838231545,-999.0,0.0001489,3]
[396224972,1764838231554,-500.0,0.00015006,2]
[396224973,1764838231565,-166.66,0.00015128,2]
[396224974,1764838231575,-300.0,0.00015287,2]
[396224976,1764838231584,-1200.0,0.00015287,2]
[396224978,1764838231594,-150.0,0.00015288,2]
[396224980,1764838231604,-150.16098093,0.00015288,2]
[396224982,1764838231613,-150.0,0.00015288,2]
[396224984,1764838231624,-150.0,0.00015288,2]
[396224986,1764838231633,-151.03556931,0.00015288,2]
[396224988,1764838231642,-161.92113776,0.00015288,2]
[396224990,1764838231652,-150.1642394,0.00015288,2]
[396224992,1764838231662,-154.91296046,0.00015288,2]
[396224994,1764838231672,-150.0,0.00015288,2]
[396224996,1764838231681,-150.34315951,0.00015288,2]
[396224998,1764838231691,-150.50566676,0.00015288,2]
[396225001,1764838231700,-151.35238017,0.00015288,2]
[396225003,1764838231714,-151.81227691,0.00015288,2]
[396225005,1764838231724,-150.4153374,0.00015288,2]
[396225007,1764838231734,-151.65586119,0.00015288,2]
[396225009,1764838231744,-264.51624615,0.00015288,2]
[396225011,1764838231754,-153.83407745,0.00015288,2]
[396225013,1764838231763,-1288.79,0.00015288,2]
[396225015,1764838231772,-166.66,0.0001544,2]
[396225017,1764838231784,-150.34,0.00015467,2]
[396225019,1764838231793,-1288.79,0.00015562,2]
[396225021,1764838231802,-6195.44955298,0.00015599,2]
[396225023,1764838231811,-309.35627856,0.00015599,2]
[396225025,1764838231821,-10471.74189492,0.000156,2]
[396225052,1764838237576,-40278.83188609,0.000156,2]
[396225053,1764838237587,-3448.8,0.000156,2]
[396225054,1764838237804,-302.69033,0.000156,2]
[396225055,1764838237816,-22152.00053168,0.000156,2]
[396225059,1764838239473,-1466.62214,0.000156,2]
[396225060,1764838239685,-681879.31321731,0.000156,2]
[396225061,1764838239695,-181.41208312,0.000156,2]
[396225062,1764838239707,-300.0,0.00015699,2]
[396225063,1764838239718,-969.6284,0.000157,2]
[396225064,1764838239727,-5336.8454,0.000157,2]
[396225065,1764838239738,-71037.6743,0.000157,2]
[396225066,1764838239748,-1814.4892,0.000157,2]
[396225067,1764838239758,-11879.04860851,0.00015701,2]
[396225068,1764838239767,-6195.4495529,0.00015744,2]
[396225069,1764838239778,-166.66,0.00015752,2]